Cogmind - Beta 9.4 --- EXPLORER MODE // 2020.02.22 @ 16:48:00 Player: Xax Result: Destroyed by P-60 Hacker with Shock Rifle Performance ------------- Evolutions (4) 2000 Regions Visited (15) 3000 Robots Destroyed (234) 1170 Value Destroyed (9176) 9176 Prototype IDs (25) 500 Alien Tech Used (0) 0 Bonus (1209) 1209 TOTAL SCORE: 17055 Bonus ------- High Alert Combat Kills 153 Follower Combat Kills 932 Network Hubs Disabled 200 Met Data Miner 300 Friendly Fire -376 Cogmind --------- Core Integrity 0/850 Matter 197/300 Energy 700/700 System Corruption 21% Temperature Cool (0) Movement Core (350) Ox6 Location -6/Hub_04(d) Parts ------- > --- POWER (2) -------- (None) > --- PROPULSION (3) --- (None) > --- UTILITY (9) ------ Large Storage Unit Improved Energy Well Gravity Neutralizing Apparatus Improved Signal Interpreter > --- WEAPON (2) ------- (None) > --- INVENTORY (10) --- Improved Treads Gravity Neutralizing Apparatus Gravity Neutralizing Apparatus Peak State ------------ > --- POWER ------------ Quantum Reactor Quantum Reactor > --- PROPULSION ------- Improved Medium Treads Centrium Heavy Treads > --- UTILITY ---------- Large Storage Unit Large Storage Unit Large Storage Unit Gravity Neutralizing Apparatus Advanced Sensor Array Improved Signal Interpreter Advanced Terrain Scan Processor Advanced Targeting Computer Centrium Medium Armor Plating > --- WEAPON ----------- Improved KE Penetrator Improved KE Penetrator > --- INVENTORY -------- Improved Treads Improved Treads Improved Heat Shielding Coolant Injector Improved Energy Well Gravity Neutralizing Apparatus Gravity Neutralizing Apparatus Gravity Neutralizing Apparatus Kinecellerator Layered Light Armor Plating Advanced Variable Charge Gun Gauss Rifle Flak Gun Heavy Rocket Launcher [Rating: 93] Favorites ----------- Power Micro Nuclear Core Engine Light Ion Engine Power Core Micro Nuclear Core Reactor Light Antimatter Reactor Propulsion Improved Medium Treads Treads Improved Medium Treads Leg Flexi-carbon Leg Utility Large Storage Unit Device Gravity Neutralizing Apparatus Storage Large Storage Unit Processor Improved Signal Interpreter Protection Medium Armor Plating Weapon Heavy Gauss Cannon Energy Gun Improved Medium Laser Ballistic Gun Gauss Rifle Ballistic Cannon Heavy Gauss Cannon Launcher Missile Launcher Slashing Weapon Power Sword Build | -11 -10 -10 -9 -9 -8 -7 -7 -7 -7 -6 -6 -6 -6 -6 -6 ------- Run | Scr Mat Min Mat Sto Mat Fac Low Low Dat Pro Fac Ext Cet Arc Hub Slots Evolved 9 | . 1 . 2 . 2 2 . . . . 2 . . . . Power 1 | . . . . . . 1 . . . . . . . . . Propulsion 1 | . . . . . . . . . . . 1 . . . . Utility 7 | . 1 . 2 . 2 1 . . . . 1 . . . . Weapon . | . . . . . . . . . . . . . . . . Parts Attached 224 | 6 8 1 7 29 26 11 7 8 . 4 38 23 21 7 28 Power 31 | 1 . 1 . 3 4 1 1 . . 1 5 6 5 . 3 Engine 11 | 1 . . . 2 2 . . . . 1 3 . 2 . . Core 12 | . . 1 . 1 2 1 1 . . . 2 4 . . . Reactor 8 | . . . . . . . . . . . . 2 3 . 3 Propulsion 34 | 2 . . 1 4 7 4 1 1 . 1 4 5 1 1 2 Treads 31 | 2 . . 1 4 7 4 1 1 . 1 4 2 1 1 2 Leg 3 | . . . . . . . . . . . . 3 . . . Wheel . | . . . . . . . . . . . . . . . . Hover . | . . . . . . . . . . . . . . . . Flight . | . . . . . . . . . . . . . . . . Utility 72 | 1 7 . 5 7 5 2 1 2 . . 15 7 7 2 11 Device 33 | . 3 . . 1 3 2 . 1 . . 7 4 5 1 6 Storage 17 | 1 1 . 3 2 1 . 1 1 . . 3 1 . 1 2 Processor 5 | . 3 . . . . . . . . . 2 . . . . Hackware . | . . . . . . . . . . . . . . . . Protection 17 | . . . 2 4 1 . . . . . 3 2 2 . 3 Artifact . | . . . . . . . . . . . . . . . . Weapon 87 | 2 1 . 1 15 10 4 4 5 . 2 14 5 8 4 12 Energy Gun 4 | . . . . 1 1 . . . . . . . 1 . 1 Energy Cannon . | . . . . . . . . . . . . . . . . Ballistic Gun 42 | 2 1 . . 5 6 2 1 1 . 2 5 3 6 2 6 Ballistic Cannon 13 | . . . 1 4 1 2 1 2 . . 2 . . . . Launcher 21 | . . . . 5 2 . 2 2 . . 6 1 . . 3 Special Weapon . | . . . . . . . . . . . . . . . . Impact Weapon . | . . . . . . . . . . . . . . . . Slashing Weapon 7 | . . . . . . . . . . . 1 1 1 2 2 Piercing Weapon . | . . . . . . . . . . . . . . . . Special Melee Weapon . | . . . . . . . . . . . . . . . . Unidentified Prototypes 15 | . . . . 5 1 1 . . . . 4 . 4 . . Parts Lost 62 | . . . . 1 1 . 4 5 . 1 . 9 15 2 24 Power 12 | . . . . 1 . . 1 . . . . 2 4 1 3 Propulsion 15 | . . . . . . . 2 2 . . . 5 3 . 3 Utility 20 | . . . . . . . 1 1 . . . 1 5 1 11 Weapon 15 | . . . . . 1 . . 2 . 1 . 1 3 . 7 Highest Loss Streak 21 | . . . . 1 1 . 3 5 . 1 . 3 13 2 21 Average Slot Usage (%) 95 | . 99 99 100 99 99 99 96 89 85 90 99 93 83 85 89 Engine 2 | . 12 . . 3 1 . . . . 1 3 . 5 1 . Core 8 | . . 10 10 6 6 14 13 14 14 12 8 9 2 . . Treads 14 | . 25 25 20 20 16 14 12 5 . 5 17 10 3 10 11 Device 12 | . 11 12 10 2 15 20 19 14 21 21 11 9 11 13 11 Storage 24 | . 12 12 10 28 33 28 28 32 28 28 22 24 18 14 17 Processor 11 | . 12 12 10 10 8 7 7 7 7 7 17 18 18 18 17 Protection 2 | . . . 19 9 . . . . . . 3 1 3 6 5 Ballistic Gun 9 | . 25 25 17 7 11 7 5 . . 2 5 6 11 10 9 Ballistic Cannon 5 | . . . 2 10 3 6 7 8 14 10 5 3 . . . Naked Turns . | . . . . . . . . . . . . . . . . Heaviest Build 108 | 14 23 25 41 60 72 80 84 87 87 87 90 92 99 80 108 Greatest Support 122 | 40 40 40 40 58 58 68 68 74 27 47 112 90 92 115 122 Greatest Overweight (x) 25 | . . . 1 1 1 1 1 3 3 3 1 25 22 . 13 Average Overweight (x) . | . . . . . 1 1 1 1 3 1 . . . . . Largest Inventory Capacity 24 | 8 10 10 16 22 22 22 22 22 22 22 22 22 22 22 24 Average Capacity 19 | 7 9 10 10 15 22 22 22 22 22 22 22 22 21 18 21 Most Carried 22 | 8 10 10 10 20 22 22 22 20 17 18 22 22 20 16 17 Average Carried 17 | 5 9 10 9 14 21 21 21 18 17 17 21 20 16 15 13 Final Capacity 22 | 8 10 10 10 22 22 22 22 22 22 22 22 22 16 22 10 Final Carried 22 | 8 10 10 10 20 22 22 19 17 17 18 22 20 16 15 3 Class Distribution -------------------- 63% | Hauler-Mutant 24% | Hacker-Mutant 12% | Scavenger-Mutant Dominant Class ---------------- Hacker-Mutant | -10/Materials Hacker-Mutant | -10/Mines Hacker-Mutant | -9/Materials Hacker-Mutant | -9/Storage Hauler-Mutant | -8/Materials Hauler-Mutant | -7/Factory Hauler-Mutant | -7/Lower Caves Hauler-Mutant | -7/Lower Caves Hauler-Mutant | -7/Data Miner Hauler-Mutant | -6/Proximity Caves Hauler-Mutant | -6/Factory Hauler-Mutant | -6/Extension Scavenger-Mutant | -6/Cetus Scavenger-Mutant | -6/Archives Scavenger-Mutant | -6/Hub_04(d) Resources | -11 -10 -10 -9 -9 -8 -7 -7 -7 -7 -6 -6 -6 -6 -6 -6 ----------- Run | Scr Mat Min Mat Sto Mat Fac Low Low Dat Pro Fac Ext Cet Arc Hub Matter Collected 7478 | 214 518 50 134 1023 1219 416 314 405 . 178 1067 525 710 172 533 Remotely 332 | . . . . . . . . . . . . 10 322 . . Salvage Created 8683 | . 496 73 234 1099 1579 455 123 18 . 37 889 541 1164 321 1654 Parts 504 | . 34 5 12 83 109 25 7 2 . 7 53 22 57 19 69 Haulers Intercepted 6 | . 1 . . 1 3 . . . . . . . . . 1 Recyclers Shooed 1 | . . . . . . . . . . . 1 . . . . Parts Field Recycled . | . . . . . . . . . . . . . . . . Retrieved Matter . | . . . . . . . . . . . . . . . . Parts Self-Destructed . | . . . . . . . . . . . . . . . . Prevented . | . . . . . . . . . . . . . . . . Kills | -11 -10 -10 -9 -9 -8 -7 -7 -7 -7 -6 -6 -6 -6 -6 -6 ------- Run | Scr Mat Min Mat Sto Mat Fac Low Low Dat Pro Fac Ext Cet Arc Hub Combat Hostiles Destroyed 191 | . 13 2 5 25 39 12 8 3 . 1 23 14 19 4 23 Melee 1 | . . . . . . . . . . . . 1 . . . Guns 121 | . 13 2 4 2 34 5 3 1 . . 6 6 19 4 22 Cannons 50 | . . . 1 16 2 7 1 2 . 1 13 7 . . . AOE 19 | . . . . 7 3 . 4 . . . 4 . . . 1 Classes Destroyed 16 | . 4 . 3 4 2 1 1 . . . 1 . . . . Worker 12 | . . . . 3 2 . . . . . 3 . . . 4 Builder 6 | . . . . 2 1 . . . . . 1 . . . 2 Tunneler 2 | . . . . . . . . . . . 2 . . . . Hauler 6 | . 1 . . 1 3 . . . . . . . . . 1 Recycler 3 | . . . . 1 1 . . . . . . . . . 1 Mechanic 1 | . . . . 1 . . . . . . . . . . . Operator 5 | . . . 1 1 1 . . . . . 2 . . . . Watcher 7 | . 1 . . 2 2 . . . . . 1 . 1 . . Swarmer 42 | . 4 1 . 2 10 3 4 2 . . 6 5 3 . 2 Grunt 84 | . 9 1 3 12 17 2 1 . . . 11 3 10 . 15 Brawler 4 | . . . . . 1 . 1 . . . . 1 1 . . Duelist 2 | . . . 1 . . . . . . . . . . . 1 Sentry 39 | . . . 1 11 9 4 . . . . 3 2 . 4 5 Hunter 7 | . . . . . 2 1 1 . . . . 3 . . . Programmer 7 | . . . . . . 2 . . . 1 3 . 1 . . Behemoth 2 | . . . . . . . 1 1 . . . . . . . Cetus Guard 4 | . . . . . . . . . . . . . 4 . . Thug 1 | . . . . 1 . . . . . . . . . . . Best Kill Streak 10 | . 3 1 3 10 5 4 4 2 . 1 3 4 4 2 9 Combat Bots Only 7 | . 3 1 3 7 3 4 4 2 . 1 3 4 4 2 6 Max Kills in Single Turn 5 | . 1 1 1 5 3 1 1 1 . 1 2 2 2 1 4 Gunslinging 1 | . . . . . 1 . . . . . . . 1 . . Exploded 4 | . . . . 4 2 . 1 . . . 1 . . . 1 Melee 1 | . . . . . . . . . . . . 1 . . . Uniques/NPCs Destroyed . | . . . . . . . . . . . . . . . . Combat | -11 -10 -10 -9 -9 -8 -7 -7 -7 -7 -6 -6 -6 -6 -6 -6 -------- Run | Scr Mat Min Mat Sto Mat Fac Low Low Dat Pro Fac Ext Cet Arc Hub Damage Taken 11456 | . 335 68 160 542 762 399 753 516 . 97 903 1132 2392 435 2962 Core 1367 | . 52 16 25 84 87 24 107 102 . 13 117 91 354 44 251 Absorbed by Shields . | . . . . . . . . . . . . . . . . Core Remaining (%) 78 | 100 . 72 . 72 84 . . . . 64 . . . . . Volleys Fired 562 | . 48 10 18 71 93 28 22 12 . 9 67 37 67 13 67 Largest 2 | . 2 2 2 2 2 2 2 2 . 2 2 2 2 2 2 Hottest 122 | . 40 40 59 89 89 89 111 122 . 122 100 100 70 70 108 Shots Fired 1038 | . 96 20 36 135 173 56 42 23 . 16 131 62 129 23 96 Gun 734 | . 96 20 34 59 152 28 11 4 . 1 54 31 129 23 92 Cannon 252 | . . . 2 65 18 28 22 9 . 15 64 29 . . . Launcher 52 | . . . . 11 3 . 9 10 . . 13 2 . . 4 Special . | . . . . . . . . . . . . . . . . Kinetic 976 | . 96 20 36 117 170 56 33 13 . 16 118 60 129 23 89 Thermal 10 | . . . . 7 . . . . . . . . . . 3 Explosive 52 | . . . . 11 3 . 9 10 . . 13 2 . . 4 Electromagnetic . | . . . . . . . . . . . . . . . . Robot Hit Streak 42 | . 30 15 11 40 42 22 25 17 . 8 25 28 41 30 24 Robot Miss Streak 4 | . 2 1 1 2 2 3 3 2 . . 1 2 4 1 3 Penetration Max 1 | . . . . . 1 . . . . . 1 1 1 1 1 Secondary Targets 12 | . 1 . . . 2 . . . . . . . 4 1 4 Max Gunslinging Chain 1 | . 1 . . . 1 . . . . . . . 1 1 1 Shots Hit Robots 851 | . 75 18 29 80 146 50 35 21 . 2 112 59 117 22 85 Core Hits 512 | . 28 9 13 63 87 36 19 10 . 2 55 35 68 9 78 Critical Hits 63 | . 1 . . 3 2 8 2 3 . . 12 2 8 5 17 Critical Kills 21 | . . . . . 1 4 . . . . 5 . 4 2 5 Critical Parts Destroyed 37 | . 1 . . 3 1 3 2 2 . . 5 2 3 3 12 Melee Attacks 8 | . . . . . . . . . . . . 7 . 1 . Impact . | . . . . . . . . . . . . . . . . Slashing 8 | . . . . . . . . . . . . 7 . 1 . Piercing . | . . . . . . . . . . . . . . . . Sneak Attacks . | . . . . . . . . . . . . . . . . Combat Hostiles . | . . . . . . . . . . . . . . . . Follow-up Attacks . | . . . . . . . . . . . . . . . . Damage Inflicted 24853 | . 808 194 334 2184 3565 1219 1539 968 . 159 4656 1651 3221 646 3709 Guns 13572 | . 808 194 287 425 2852 560 207 53 . 28 1240 593 3221 596 2508 Cannons 5414 | . . . 47 781 195 659 628 278 . 131 1927 768 . . . Explosions 5479 | . . . . 978 518 . 704 637 . . 1441 . . . 1201 Melee 340 | . . . . . . . . . . . . 290 . 50 . Ramming 48 | . . . . . . . . . . . 48 . . . . Kinetic 18815 | . 808 194 334 1120 3047 1219 835 331 . 159 3167 1361 3221 596 2423 Thermal 690 | . . . . 86 . . . . . . 452 . . . 152 Explosive 4458 | . . . . 978 518 . 704 637 . . 989 . . . 632 Electromagnetic 502 | . . . . . . . . . . . . . . . 502 Impact . | . . . . . . . . . . . . . . . . Slashing 340 | . . . . . . . . . . . . 290 . 50 . Piercing . | . . . . . . . . . . . . . . . . Highest Corruption 21 | . 1 1 1 1 . 1 1 1 1 1 3 3 4 4 21 Average Corruption 2 | . 1 1 1 1 . 1 1 1 1 1 3 3 3 4 4 Corruption Purged . | . . . . . . . . . . . . . . . . Effects 158 | . 1 6 . 4 . 1 5 7 . 4 40 31 25 5 29 Message Errors 47 | . 1 3 . 3 . 1 2 4 . 1 10 11 6 . 5 Matter Fused 29 | . . . . . . . . . . . 8 10 2 2 7 Heat Flow Errors 11 | . . . . . . . . . . . 5 1 3 1 1 Energy Discharges 21 | . . 2 . . . . 1 1 . 1 5 2 6 . 3 Parts Rejected 1 | . . . . . . . . . . . . . . . 1 Data Loss (minor) 21 | . . 1 . . . . 1 1 . 1 8 5 1 1 2 Targeting Errors 24 | . . . . 1 . . 1 1 . . 4 2 6 1 8 Weapon Failures 4 | . . . . . . . . . . 1 . . 1 . 2 Overload Shots . | . . . . . . . . . . . . . . . . Overflow Damage 425 | . . . . 26 . 4 23 . . . 248 28 . . 96 Projectiles 139 | . . . . 11 . 4 . . . . 106 18 . . . Explosions 274 | . . . . 15 . . 23 . . . 140 . . . 96 Melee 12 | . . . . . . . . . . . 2 10 . . . Knockbacks 25 | . . . . 2 1 1 4 . . 1 15 1 . . . Impact . | . . . . . . . . . . . . . . . . Kinetic 25 | . . . . 2 1 1 4 . . 1 15 1 . . . Secondary . | . . . . . . . . . . . . . . . . Self-Inflicted Damage 513 | . . . . 233 28 . 59 89 . . 43 . . . 61 Shots 32 | . . . . 17 2 . 3 6 . . 3 . . . 1 Rammed 2 | . . . . . . . . . . . 2 . . . . Targets Rammed 2 | . . . . . . . . . . . 2 . . . . Kicked . | . . . . . . . . . . . . . . . . Crushed . | . . . . . . . . . . . . . . . . Highest Temperature 400 | . 24 17 50 114 15 223 230 132 . 270 262 400 199 237 367 Average Temperature 70 | . 9 8 13 25 4 81 104 38 . 106 56 149 53 63 113 Received Heat Transfer 3483 | . 225 51 27 156 531 114 126 84 . . 267 141 651 117 993 Effects 14 | . . . . . . 2 1 . . 3 1 2 . . 5 Shutdowns 2 | . . . . . . . . . . . . 1 . . 1 Energy Bleed 6 | . . . . . . 2 1 . . 1 . 1 . . 1 Interference 6 | . . . . . . . . . . 2 1 . . . 3 Siege Activations . | . . . . . . . . . . . . . . . . Robots Corrupted 1 | . . . . . . . . . . . . . . . 1 Combat Hostiles . | . . . . . . . . . . . . . . . . Parts Fried 3 | . . . . . . . . . . . . . . . 3 Impact Corruptions 1 | . . . . . . . . . . . 1 . . . . Robots Melted . | . . . . . . . . . . . . . . . . Combat Hostiles . | . . . . . . . . . . . . . . . . Parts Melted . | . . . . . . . . . . . . . . . . Heat Transferred 678 | . . . . 185 . . . . . . 300 . . . 193 Parts Sabotaged . | . . . . . . . . . . . . . . . . Parts Stolen . | . . . . . . . . . . . . . . . . Parts Stripped . | . . . . . . . . . . . . . . . . Power Chain Reactions 1 | . . . . . . . . . . . . . . . 1 Missiles Intercepted . | . . . . . . . . . . . . . . . . Alert | -11 -10 -10 -9 -9 -8 -7 -7 -7 -7 -6 -6 -6 -6 -6 -6 ------- Run | Scr Mat Min Mat Sto Mat Fac Low Low Dat Pro Fac Ext Cet Arc Hub Peak Influence 633 | . 148 92 193 423 353 123 . . . . 633 230 289 127 272 Average Influence 123 | . 67 40 89 117 115 41 . . . . 312 61 73 85 122 Maximum Alert Level 2 | . . . . 2 1 . . . . . 2 1 1 . 1 Low Security (%) 79 | 100 100 100 100 80 73 100 . . . . 32 90 94 100 86 Level 1 11 | . . . . 13 26 . . . . . 21 9 5 . 13 Level 2 9 | . . . . 6 . . . . . . 45 . . . . Level 3 . | . . . . . . . . . . . . . . . . Level 4 . | . . . . . . . . . . . . . . . . Level 5 . | . . . . . . . . . . . . . . . . High Security . | . . . . . . . . . . . . . . . . Max Security . | . . . . . . . . . . . . . . . . Squads Dispatched 46 | . 2 . 2 6 5 4 . . . . 18 2 . . 7 Investigation 23 | . 2 . 1 2 2 2 . . . . 10 2 . . 2 Extermination 7 | . . . . . . 2 . . . . 4 . . . 1 Reinforcement 13 | . . . 1 4 3 . . . . . 4 . . . 1 Assault . | . . . . . . . . . . . . . . . . Garrison 3 | . . . . . . . . . . . . . . . 3 Intercept . | . . . . . . . . . . . . . . . . Construction Impeded 3 | . . . . . 1 . . . . . 1 . . . 1 Haulers Reinforced . | . . . . . . . . . . . . . . . . Stealth | -11 -10 -10 -9 -9 -8 -7 -7 -7 -7 -6 -6 -6 -6 -6 -6 --------- Run | Scr Mat Min Mat Sto Mat Fac Low Low Dat Pro Fac Ext Cet Arc Hub Distress Signals 23 | . . . . 4 3 . . . . . 5 1 2 . 8 Communications Jammed . | . . . . . . . . . . . . . . . . Distress Signals . | . . . . . . . . . . . . . . . . Times Spotted 292 | . 19 6 6 33 48 17 9 3 . 3 54 17 21 5 51 Peak Tracking Total 17 | . 3 2 3 6 4 3 7 2 . 2 5 7 5 2 17 Tactical Retreats 14 | . . 1 . 1 3 1 . . . . 2 3 . . 3 Traps | -11 -10 -10 -9 -9 -8 -7 -7 -7 -7 -6 -6 -6 -6 -6 -6 ------- Run | Scr Mat Min Mat Sto Mat Fac Low Low Dat Pro Fac Ext Cet Arc Hub Traps Triggered 9 | . 1 . . 3 1 1 . . . . . 1 . . 2 Indirectly . | . . . . . . . . . . . . . . . . Trap Hack Attempts . | . . . . . . . . . . . . . . . . Triggered . | . . . . . . . . . . . . . . . . Disarmed 3 | . 2 . . . . . . . . . 1 . . . . Reprogrammed . | . . . . . . . . . . . . . . . . Reused . | . . . . . . . . . . . . . . . . Traps Extracted . | . . . . . . . . . . . . . . . . Installed . | . . . . . . . . . . . . . . . . Triggered 2 | . . . . . . . 2 . . . . . . . . Machines | -11 -10 -10 -9 -9 -8 -7 -7 -7 -7 -6 -6 -6 -6 -6 -6 ---------- Run | Scr Mat Min Mat Sto Mat Fac Low Low Dat Pro Fac Ext Cet Arc Hub Machines Disabled 40 | . . 2 . 7 4 . 2 . . . 8 2 2 1 12 Max in Single Turn 5 | . . . . 1 1 . 1 . . . 4 . 1 1 5 Network Hub 1 | . . . . . . . . . . . . . . . 1 Energy Cycler 4 | . . . . . . . . . . . . 4 . . . Machines Sabotaged . | . . . . . . . . . . . . . . . . Garrisons Compromised . | . . . . . . . . . . . . . . . . Overloaded Fab Kills . | . . . . . . . . . . . . . . . . Fab Network Shutdowns 1 | . . . . . . . . . . . 1 . . . . Hacking | -11 -10 -10 -9 -9 -8 -7 -7 -7 -7 -6 -6 -6 -6 -6 -6 --------- Run | Scr Mat Min Mat Sto Mat Fac Low Low Dat Pro Fac Ext Cet Arc Hub Machines Accessed 48 | . 6 . 2 8 5 4 1 1 . . 12 4 2 . 3 Terminals 32 | . 5 . 1 6 3 1 . 1 . . 6 4 2 . 3 Fabricators 3 | . . . . . . 1 . . . . 2 . . . . Repair Stations 5 | . 1 . . 2 . 1 . . . . 1 . . . . Recycling Units . | . . . . . . . . . . . . . . . . Scanalyzers 7 | . . . 1 . 2 1 . . . . 3 . . . . Garrison Access . | . . . . . . . . . . . . . . . . Total Hacks 150 | . 21 . 12 22 14 14 1 1 . . 40 9 5 . 11 Successful 109 | . 15 . 9 17 12 11 1 1 . . 26 4 5 . 8 Failed 41 | . 6 . 3 5 2 3 . . . . 14 5 . . 3 Catastrophic 5 | . . . 1 . . . . . . . 2 1 . . 1 Database Lockouts . | . . . . . . . . . . . . . . . . Manual 5 | . . . 3 . 2 . . . . . . . . . . Terminals 88 | . 18 . 3 15 6 4 . 1 . . 16 9 5 . 11 Fabricators 12 | . . . . . . 1 . . . . 11 . . . . Repair Stations 15 | . 3 . . 7 . 3 . . . . 2 . . . . Recycling Units . | . . . . . . . . . . . . . . . . Scanalyzers 34 | . . . 9 . 8 6 . . . . 11 . . . . Garrison Access . | . . . . . . . . . . . . . . . . Terminal Hacks 59 | . 12 . . 11 6 3 1 1 . . 8 4 5 . 8 Record 9 | . . . . . . . . 1 . . . . 4 . 4 Part Schematic 14 | . . . . 4 . 1 . . . . 3 3 . . 3 Prototype ID Bank 6 | . 2 . . 2 . 1 . . . . 1 . . . . Open Door 6 | . . . . 3 . . 1 . . . . 1 1 . . Level Access Points 1 | . . . . . 1 . . . . . . . . . . Branch Access Points 5 | . 1 . . . 2 . . . . . 1 . . . 1 Emergency Access Points 3 | . 2 . . . 1 . . . . . . . . . . Scanalyzer Index 1 | . . . . . . . . . . . 1 . . . . Alert Level 1 | . . . . . . . . . . . 1 . . . . Unreport Threat 2 | . . . . . 1 1 . . . . . . . . . Disarm Traps 2 | . 1 . . . . . . . . . 1 . . . . Dispatch Records 1 | . 1 . . . . . . . . . . . . . . Maintenance Status 1 | . 1 . . . . . . . . . . . . . . Surveillance Status 1 | . . . . 1 . . . . . . . . . . . Patrol Status 1 | . 1 . . . . . . . . . . . . . . Transport Status 1 | . 1 . . . . . . . . . . . . . . Recall Reinforcements 1 | . 1 . . . . . . . . . . . . . . Hauler Manifests 2 | . . . . 1 1 . . . . . . . . . . Registered Components 1 | . 1 . . . . . . . . . . . . . . Fabricator Hacks 10 | . . . . . . 1 . . . . 9 . . . . Load Schematic 2 | . . . . . . . . . . . 2 . . . . Build 8 | . . . . . . 1 . . . . 7 . . . . Repair Station Hacks 13 | . 3 . . 6 . 2 . . . . 2 . . . . Scan Component 8 | . 2 . . 4 . 1 . . . . 1 . . . . Repair 5 | . 1 . . 2 . 1 . . . . 1 . . . . Recycling Unit Hacks . | . . . . . . . . . . . . . . . . Scanalyzer 27 | . . . 9 . 6 5 . . . . 7 . . . . Insert Component 13 | . . . 4 . 3 2 . . . . 4 . . . . Analyze 14 | . . . 5 . 3 3 . . . . 3 . . . . Garrison Access Hacks . | . . . . . . . . . . . . . . . . Unauthorized Hacks . | . . . . . . . . . . . . . . . . Terminals . | . . . . . . . . . . . . . . . . Fabricators . | . . . . . . . . . . . . . . . . Repair Stations . | . . . . . . . . . . . . . . . . Recycling Units . | . . . . . . . . . . . . . . . . Scanalyzers . | . . . . . . . . . . . . . . . . Garrison Access . | . . . . . . . . . . . . . . . . Data Cores Recovered 2 | . . . . . 1 . . . . . 1 . . . . Used . | . . . . . . . . . . . . . . . . Hacking Detections 34 | . 4 . 2 5 3 3 . . . . 12 2 1 . 2 Full Trace Events 26 | . 4 . 1 3 2 2 . . . . 10 2 . . 2 Feedback Events 2 | . 1 . 1 . . . . . . . . . . . . Corruption 2 | . 1 . 1 . . . . . . . . . . . . Feedback Blocked . | . . . . . . . . . . . . . . . . Robot Schematics Acquired . | . . . . . . . . . . . . . . . . Robots Built . | . . . . . . . . . . . . . . . . Matter . | . . . . . . . . . . . . . . . . Time . | . . . . . . . . . . . . . . . . Total Robot Build Rating . | . . . . . . . . . . . . . . . . Part Schematics Acquired 23 | . . . 4 4 2 2 . . . . 5 3 . . 3 Parts Built 4 | . . . . . . 2 . . . . 2 . . . . Matter 402 | . . . . . . 234 . . . . 168 . . . . Time 100 | . . . . . . 58 . . . . 42 . . . . Total Part Build Rating 22 | . . . . . . 14 . . . . 8 . . . . Parts Repaired 4 | . 1 . . 2 . 1 . . . . . . . . . Time 184 | . 26 . . 48 . 40 . . . . 70 . . . . Parts Recycled . | . . . . . . . . . . . . . . . . Recycled Matter . | . . . . . . . . . . . . . . . . Retrieved Matter . | . . . . . . . . . . . . . . . . Retrieved Components . | . . . . . . . . . . . . . . . . Parts Scanalyzed 11 | . . . 4 . 2 2 . . . . 3 . . . . Part Schematics Acquired 9 | . . . 4 . 2 1 . . . . 2 . . . . Parts Damaged . | . . . . . . . . . . . . . . . . Bothacking | -11 -10 -10 -9 -9 -8 -7 -7 -7 -7 -6 -6 -6 -6 -6 -6 ------------ Run | Scr Mat Min Mat Sto Mat Fac Low Low Dat Pro Fac Ext Cet Arc Hub Used RIF Installer . | . . . . . . . . . . . . . . . . Robots Hacked . | . . . . . . . . . . . . . . . . Non-combat . | . . . . . . . . . . . . . . . . Combat . | . . . . . . . . . . . . . . . . Robot Hacks Applied . | . . . . . . . . . . . . . . . . Relay Couplers Released . | . . . . . . . . . . . . . . . . Robots Rewired . | . . . . . . . . . . . . . . . . Allies Hacked . | . . . . . . . . . . . . . . . . Hacks Repelled . | . . . . . . . . . . . . . . . . Allies | -11 -10 -10 -9 -9 -8 -7 -7 -7 -7 -6 -6 -6 -6 -6 -6 -------- Run | Scr Mat Min Mat Sto Mat Fac Low Low Dat Pro Fac Ext Cet Arc Hub Total Allies 7 | . . 2 . . . . . . . 1 . 4 . . . Largest Group 3 | . . 2 1 1 . . . . . 1 1 3 . . . Highest-Rated Group 94 | . . 51 31 26 . . . . . 94 94 93 . . . Highest-Rated Ally 94 | . . 31 31 26 . . . . . 94 94 37 . . . Total Orders . | . . . . . . . . . . . . . . . . Ally Attacks 102 | . . 12 3 . . . . . . 4 64 19 . . . Total Damage 2683 | . . 148 42 . . . . . . 187 2007 299 . . . Kills 28 | . . 4 1 . . . . . . 2 18 3 . . . Allies Corrupted . | . . . . . . . . . . . . . . . . Allies Melted . | . . . . . . . . . . . . . . . . Intel | -11 -10 -10 -9 -9 -8 -7 -7 -7 -7 -6 -6 -6 -6 -6 -6 ------- Run | Scr Mat Min Mat Sto Mat Fac Low Low Dat Pro Fac Ext Cet Arc Hub Robot Analysis Total . | . . . . . . . . . . . . . . . . Derelict Logs Recovered 8 | . . 1 . . . . 2 2 . 3 . . . . . Drone Launches 4 | . . . . . 2 . . . . . . . 2 . . Drone Recoveries . | . . . . . . . . . . . . . . . . Exploration | -11 -10 -10 -9 -9 -8 -7 -7 -7 -7 -6 -6 -6 -6 -6 -6 ------------- Run | Scr Mat Min Mat Sto Mat Fac Low Low Dat Pro Fac Ext Cet Arc Hub Turns Passed 19005 | 76 1127 1046 412 2089 2071 1386 1394 1347 170 1146 2661 1892 903 394 891 Spaces Moved 9336 | 39 581 621 193 976 861 693 797 739 86 589 1398 937 319 182 325 Core 415 | 5 . . . . . . . 191 86 112 . 14 6 . 1 Treads 8604 | 34 581 621 193 976 861 693 797 548 . 477 1398 620 299 182 324 Legs 317 | . . . . . . . . . . . . 303 14 . . Wheels . | . . . . . . . . . . . . . . . . Hover . | . . . . . . . . . . . . . . . . Flight . | . . . . . . . . . . . . . . . . Fastest Speed 50 | 50 160 160 160 160 172 165 165 165 200 180 160 150 150 160 160 Average Speed 169 | 145 160 160 164 175 177 165 165 174 200 183 160 179 178 160 163 Slowest Speed 1300 | 160 160 160 180 180 180 177 165 200 200 200 180 1300 1150 160 700 Overloaded Moves . | . . . . . . . . . . . . . . . . Propulsion Burnouts . | . . . . . . . . . . . . . . . . Robots Hopped . | . . . . . . . . . . . . . . . . Cave-ins Triggered 1 | . . . . . . . . . . . . . . . 1 Exploration Rate (%) 64 | 3 82 92 18 97 73 24 83 83 74 59 31 84 88 96 39 Regions Visited 15 Branch Regions 10 Pre-discovered Areas 1 | . . . . . . . 1 . . . . . . . . Known Exits Taken 15 | 1 1 1 1 1 1 1 1 1 1 1 1 1 1 1 . Unknown Exits Taken . | . . . . . . . . . . . . . . . . Scrap Searched 6 | . . . . . . . 2 2 . 2 . . . . . Spaces Dug 93 | . . . . 5 9 . . . . 12 22 45 . . . Terrain Destroyed 851 | . . . . 136 50 7 82 89 . 13 180 54 6 7 227 Melee . | . . . . . . . . . . . . . . . . Projectile 97 | . . . . 5 2 7 8 3 . 13 16 16 6 7 14 AOE 754 | . . . . 131 48 . 74 86 . . 164 38 . . 213 Actions | -11 -10 -10 -9 -9 -8 -7 -7 -7 -7 -6 -6 -6 -6 -6 -6 --------- Run | Scr Mat Min Mat Sto Mat Fac Low Low Dat Pro Fac Ext Cet Arc Hub Total 11396 | 58 695 657 255 1202 1230 876 827 760 85 635 1682 1073 519 258 584 Wait 1059 | . 39 21 31 97 219 121 . . . 31 131 55 104 54 156 Move 9321 | 38 580 620 192 975 860 692 796 738 85 588 1397 936 318 181 325 Hop . | . . . . . . . . . . . . . . . . Pick Up 136 | 14 12 2 4 20 15 12 1 2 . 3 25 8 9 2 7 Fast Attach 14 | . . 1 1 2 1 3 . . . . 2 4 . . . Attach 81 | 6 3 . 2 2 5 2 3 4 . 2 8 10 12 3 19 Detach 4 | . . . . . 1 . . . . . 3 . . . . Swap 129 | . 5 . 4 25 20 6 4 4 . 2 28 9 9 4 9 Drop 78 | . 8 3 3 10 16 12 1 . . . 19 5 . . 1 Fire 562 | . 48 10 18 71 93 28 22 12 . 9 67 37 67 13 67 Melee 8 | . . . . . . . . . . . . 7 . 1 . Ram . | . . . . . . . . . . . . . . . . Kick . | . . . . . . . . . . . . . . . . Crush 2 | . . . . . . . . . . . 2 . . . . Escape Stasis 2 | . . . . . . . . . . . . 2 . . . Rewire . | . . . . . . . . . . . . . . . . Trap . | . . . . . . . . . . . . . . . . Miscellaneous . | . . . . . . . . . . . . . . . . Route ------- -11/Scrapyard -10/Materials (discovered 3 exits: *Mat x2 / *Min) -10/Mines (discovered 2 exits: *Mat x2) -9/Materials -9/Storage (discovered 2 exits: *Mat / Rec) -8/Materials (discovered 3 exits: *Fac x3) -7/Factory -7/Lower Caves -7/Lower Caves (discovered 2 exits: *Fac / *Dat) -7/Data Miner -6/Proximity Caves -6/Factory (discovered 5 exits: Fac / Low x2 / *Ext x2) -6/Extension (discovered 3 exits: *Fac x2 / *Cet) -6/Cetus (discovered 2 exits: *Fac / *Arc) -6/Archives (discovered 3 exits: *Fac / *Hub x2) -6/Hub_04(d) (discovered 1 exit: *Fac) History --------- Turn | Location | Event 40 | -11/Scrapyard | Identified exit to Materials 40 | -11/Scrapyard | Discovered exit to Materials (range 16) 77 | -11/Scrapyard | Entered Materials 77 | -10/Materials | Evolved 1 slot: Utility x1 301 | -10/Materials | Build established: Hacker-Mutant 374 | -10/Materials | Identified exit to Materials 374 | -10/Materials | Discovered exit to Materials (range 4) 403 | -10/Materials | Identified exit to Mines 586 | -10/Materials | Repaired Sensor Array 807 | -10/Materials | Discovered exit to Materials (range 8) 1204 | -10/Materials | Entered Mines 2007 | -10/Mines | Discovered exit to Materials (range 9) 2228 | -10/Mines | Discovered exit to Materials (range 6) 2250 | -10/Mines | Entered Materials 2250 | -9/Materials | Accompanied by 1 ally 2250 | -9/Materials | Evolved 2 slots: Utility x2 2255 | -9/Materials | Led the pair of lost Derelicts to an unsafe place 2535 | -9/Materials | Identified exit to Storage 2535 | -9/Materials | Discovered exit to Storage (range 15) 2662 | -9/Materials | Entered Storage 2662 | -9/Storage | Accompanied by 1 ally 2663 | -9/Storage | Identified exit to Recycling 2975 | -9/Storage | Found Prototype Launcher 2976 | -9/Storage | Identified Scatter Rocket Array 3092 | -9/Storage | Identified exit to Materials 3092 | -9/Storage | Discovered exit to Materials (range 15) 3134 | -9/Storage | Destroyed 7 combat bots 3252 | -9/Storage | Repaired Shield Generator 4103 | -9/Storage | Repaired Hrd. Light Armor Plating 4751 | -9/Storage | Entered Materials 4751 | -8/Materials | Evolved 2 slots: Utility x2 4914 | -8/Materials | Build established: Hauler-Mutant 6164 | -8/Materials | Identified exit to Factory 6822 | -8/Materials | Entered Factory 6822 | -7/Factory | Evolved 2 slots: Power x1, Utility x1 6912 | -7/Factory | Fabricated Hvy. Gauss Cannon (x2) 7634 | -7/Factory | Repaired Gravity Neutralizing Apparatus 8198 | -7/Factory | Identified exit to Lower Caves 8198 | -7/Factory | Discovered exit to Lower Caves (range 3) 8208 | -7/Factory | Entered Lower Caves 8288 | -7/Lower Caves | Learned location of Zion (-6) 8296 | -7/Lower Caves | Learned location of 1 exit from Proximity Caves 8721 | -7/Lower Caves | Spotted B-75 Beast 8752 | -7/Lower Caves | Destroyed B-75 Beast 9022 | -7/Lower Caves | Identified exit to Lower Caves 9022 | -7/Lower Caves | Discovered exit to Lower Caves (range 13) 9229 | -7/Lower Caves | Attracted the attention of an 0b10 outpost 9304 | -7/Lower Caves | Lost 3 parts (2n1u) 9602 | -7/Lower Caves | Entered another Lower Caves area 9824 | -7/Lower Caves | Identified exit to Factory 9824 | -7/Lower Caves | Discovered exit to Factory (range 7) 10285 | -7/Lower Caves | Encountered a Warlord checkpoint 10486 | -7/Lower Caves | Spotted B-75 Beast 10562 | -7/Lower Caves | Destroyed B-75 Beast 10593 | -7/Lower Caves | Lost 5 parts (2n1u2w) 10629 | -7/Lower Caves | Identified exit to Data Miner 10629 | -7/Lower Caves | Discovered exit to Data Miner (range 8) 10831 | -7/Lower Caves | Learned Factory emergency access door positions 10949 | -7/Lower Caves | Entered Data Miner 10949 | -7/Data Miner | Identified exit to Proximity Caves 10949 | -7/Data Miner | Discovered exit to Proximity Caves (range 6) 10987 | -7/Data Miner | Met Data Miner 11053 | -7/Data Miner | Received God Mode back door access code from Data Miner 11119 | -7/Data Miner | Entered Proximity Caves 11203 | -6/Proximity Caves | Spotted B-75 Beast 11205 | -6/Proximity Caves | Escorted by Enhanced Grunt 11750 | -6/Proximity Caves | Learned Factory terminal intel 12072 | -6/Proximity Caves | Learned Factory trap positions 12099 | -6/Proximity Caves | Learned Factory stockpile data 12265 | -6/Proximity Caves | Entered Factory 12265 | -6/Factory | Accompanied by 1 ally 12265 | -6/Factory | Evolved 2 slots: Propulsion x1, Utility x1 12266 | -6/Factory | Loaded intel: 74 trap records 12269 | -6/Factory | Loaded intel: 21 terminal locations 12365 | -6/Factory | Incoming investigation squad redirected 12940 | -6/Factory | Fabricated Mic. Nuclear Core (x2) 12961 | -6/Factory | Incoming investigation squad redirected 13172 | -6/Factory | Local fabrication network quarantined 13275 | -6/Factory | Incoming investigation squad redirected 13632 | -6/Factory | Incoming investigation squad redirected 13912 | -6/Factory | Identified exit to Factory 13912 | -6/Factory | Discovered exit to Factory (range 18) 13928 | -6/Factory | Incoming investigation squad redirected 13954 | -6/Factory | Identified exit to Lower Caves 13954 | -6/Factory | Identified exit to Extension 14791 | -6/Factory | Incoming investigation squad redirected 14926 | -6/Factory | Entered Extension 15173 | -6/Extension | Rescued a captive Derelict 15174 | -6/Extension | Rescued a captive Derelict 15345 | -6/Extension | Rescued a captive Derelict 15439 | -6/Extension | Energy Cycler disabled 15443 | -6/Extension | Rescued a captive Derelict 15526 | -6/Extension | Disrupted transfer network 15532 | -6/Extension | Spotted B-75 Beast 15707 | -6/Extension | Lost 3 parts (2n1u) 15745 | -6/Extension | Discovered exit to Factory (range 20) 16032 | -6/Extension | Incoming investigation squad redirected 16109 | -6/Extension | Lost 3 parts (2p1w) 16456 | -6/Extension | Discovered exit to Factory (range 10) 16457 | -6/Extension | Identified exit to Cetus 16457 | -6/Extension | Discovered exit to Cetus (range 6) 16646 | -6/Extension | Build established: Scavenger-Mutant 16668 | -6/Extension | Extracted ID and sensor layout for unrecognized location from A7's data core 16818 | -6/Extension | Entered Cetus 16933 | -6/Cetus | Spotted Cetus Guard 16933 | -6/Cetus | Spotted Cetus Guard 16947 | -6/Cetus | Spotted Cetus Guard 16948 | -6/Cetus | Spotted Cetus Guard 16993 | -6/Cetus | Destroyed Cetus Guard 17008 | -6/Cetus | Destroyed Cetus Guard 17013 | -6/Cetus | Core integrity fell below 50% 17022 | -6/Cetus | Destroyed Cetus Guard 17028 | -6/Cetus | Destroyed Cetus Guard 17078 | -6/Cetus | Lost 13 parts (3p3n4u3w) 17280 | -6/Cetus | Discovered exit to Factory (range 15) 17600 | -6/Cetus | Cetus Manufacturing Module disabled 17660 | -6/Cetus | Identified exit to Archives 17660 | -6/Cetus | Discovered exit to Archives (range 16) 17688 | -6/Cetus | Spotted Cetus Guard 17688 | -6/Cetus | Spotted Cetus Guard 17721 | -6/Cetus | Entered Archives 17919 | -6/Archives | Unable to access archive contents 17954 | -6/Archives | Identified exit to Hub_04(d) 17954 | -6/Archives | Discovered exit to Hub_04(d) (range 16) 17980 | -6/Archives | Discovered exit to Hub_04(d) (range 15) 18049 | -6/Archives | Discovered exit to Factory (range 13) 18115 | -6/Archives | Entered Hub_04(d) 18485 | -6/Hub_04(d) | Garrison activated, responded to threat 18532 | -6/Hub_04(d) | Discovered exit to Factory (range 15) 18754 | -6/Hub_04(d) | Core integrity fell below 20% 18924 | -6/Hub_04(d) | Network Hub disabled 18942 | -6/Hub_04(d) | Crushed by falling debris 18942 | -6/Hub_04(d) | System corruption reached 10% 18963 | -6/Hub_04(d) | Spotted Lightning 18968 | -6/Hub_04(d) | Spotted Lightning 18990 | -6/Hub_04(d) | Spotted Lightning 18992 | -6/Hub_04(d) | Spotted Lightning 18992 | -6/Hub_04(d) | Spotted Lightning 18992 | -6/Hub_04(d) | Spotted Lightning 18993 | -6/Hub_04(d) | Spotted Lightning 19006 | -6/Hub_04(d) | Destroyed by P-60 Hacker with Shock Rifle Last Messages --------------- 18994_ System corrupted: Coolant Injector rejected. 18994_ The unstable cave ceiling collapses. 18994_ Lightning crushed by falling debris. 18994_ Hvy. Laser crushed. 18994_ Penetrated by EMDS Slug. 18994_ Imp. Heat Shielding destroyed. 18995_ Penetrated by EMDS Slug. 18997_ Adv. Variable Charge Gun destroyed. 18997_ K-01 Serf destroyed. 18997_ Penetrated by EMDS Slug. 18997_ Critical hit. 18997_ Imp. Treads destroyed. 18998_ Acquired 17 matter. 18999_ Penetrated by EMDS Slug. 18999_ Critical hit. 18999_ Imp. Medium Treads destroyed. 18999_ Penetrated by EMDS Slug. 19001_ Quantum Reactor destroyed. 19002_ Penetrated by EMDS Slug. 19004_ EMDS Slug penetrates Wall. Map ----- +----------------------------------------------------+ | ???????????????????????????????????????????????? | | ???????????????????????????????????????????????? | | ???????????????????????????????????????????????? | | ???????????????????????????????????????????????? | | ???????????????????????????????????????????????? | | ???????????????????????????????????????????????? | | ???????????????????????????????????????????????? | | ???????????????????????????????????????????????? | | ???????????????????????????????????????????????? | | ???????????????????????????????????????????????? | | ???????????????????????????????????????????????? | | ???????????????????????????????????????????????? | | ???????????????????????????????????????????????? | | ???????????????????????????????????????????????? | | ???????????????????????????????????##??????????? | | ?????????????????????????????????? ??????????? | | ????????????????????????????????? ?????????? | | ????????????????????????????????;;;;;;?????????? | | ????"??????????????????????????; ????????? | | ?? """ ??#??##??????#####???? ; ????????? | | ?? #*?# #######"""#??? ; ????????? | | ? *!# =##[ # T"#### ; ???????? | | ? !!!! !|=#!*=; ;;;;;;; ???????? | | ? !% %%=t[*hg =! ! ??????? | | ? # !%%###=h|p! %* ; ??????? | | ? ! *%*[[;%g;=@;;;;;; ??????? | | ?? %= i h#!h### ;; % ??????? | | ?? "" / #?? *;; ??????? | | ?? + """ # #??? ;; ???????? | | ??? # "" " # #??? /;;;;;;;;;;???????? | | ???? ??# """" ! # #???? # ; ; ????????? | | ???????# ! # #???? ]#? ; ; ????????? | | ???????# """" # #????? #??## ;##????????? | | ???????# """ ! # #????? /?????;#?????????? | | ???????# """ # ??????##?????#?????????? | | ?#####?# """ #???????????????????????? | | #?# # #???????????????????????? | | "T" ##### # /???????????????????????? | | ######"T" #### #???????????????????????? | | =# #???????????????????????? | | ###### ##############+#????????????????????????? | | ###### #????????????? ?????????????????????????? | | #???????????????????????????????????????? | | ###### #???????????????????????????????????????? | | # #???????????????????????????????????????? | | "" # #???????????????????????????????????????? | | T" # #???????????????????????????????????????? | | "" # #???????????????????????????????????????? | | # #???????????????????????????????????????? | | # #???????????????????????????????????????? | +----------------------------------------------------+ Best States ------------- Heat Dissipation 37 Energy Generation 45 Energy Capacity 1100 Matter Stores 500 Matter Capacity 500 Sight Range 16 Robot Scan Range 16 Terrain Scan Range 20 Terrain Scan Density 210 Cloak Strength 2 Additional Mass Support 24 Heat Shielding 100 Armor Coverage 450 Resistance: KI 35 Resistance: TH 35 Resistance: EX 35 Resistance: EM 35 Resistance: I 35 Resistance: S 35 Resistance: P 35 Weapon Shielding 90 Evasion (%) 40 Targeting Accuracy 8 Recoil Reduction 3 Matter Filtering 30 Kinecelleration 30 Offensive Hacking 20 Item Schematics ----------------- Lgt. Treads | -9/Materials | Scanalyzed Lgt. Ion Engine | -9/Materials | Scanalyzed Imp. Heat Sink | -9/Materials | Scanalyzed Weight Redist. System | -9/Materials | Scanalyzed Hardlight Generator | -9/Storage | Hacked Shotgun | -9/Storage | Hacked Imp. Treads | -9/Storage | Hacked Particle Cannon | -9/Storage | Hacked Gravity Neutralizing Apparatus | -8/Materials | Scanalyzed Cooling System | -8/Materials | Scanalyzed Hvy. Gauss Cannon | -7/Factory | Scanalyzed Fission Core | -7/Factory | Hacked Mic. Nuclear Core | -6/Factory | Scanalyzed Com. Battery | -6/Factory | Scanalyzed Point Defense Array | -6/Factory | Hacked Hyp. Gauss Rifle | -6/Factory | Hacked Hpw. Shock Rifle | -6/Factory | Hacked Hvy. Flak Cannon | -6/Extension | Hacked Power Amplifier | -6/Extension | Hacked Adv. Melee Analysis Suite | -6/Extension | Hacked Railgun | -6/Hub_04(d) | Hacked Mic. Fission Core | -6/Hub_04(d) | Hacked Adv. Drone Bay | -6/Hub_04(d) | Hacked Robot Schematics ------------------ None Fabricated ------------ Hvy. Gauss Cannon | x2 | -7/Factory | Preloaded Mic. Nuclear Core | x2 | -6/Factory Alien Tech Used ----------------- None Achievements -------------- None Challenges ------------ None Game ------ Seed MetafieldMyomerScythe Manual? 0 Play Time 02:34:27 Cumulative 141.3 hours Start 2020.02.22 @ 14:08:28 End 2020.02.22 @ 16:48:00 Sessions 1 Manual Loads 0 Difficulty Explorer Special Mode None Game No. 31 Rogue 1 Adventurer 0 Explorer 30 Win Type - Total 1 Types 0/0/1/0/0/0/0 Lore% 27 Gallery% 60 Achievement% 37 Wizard Run 0 Options --------- ASCII 0 Keyboard 0 Movement Mouse Keybinds 0 Fullscreen 1 Font 32/SmallcapsGlow Map View 76x50 Tactical HUD 1 Map Filters NONE Filters NONE Steam 1 RUN: 680fd147-95ab-4f9e-92ac-302570d2356e